bitfinex/quotes_BTCUSD_20240821
["timestamp","ask_amount","ask_price","bid_price","bid_amount"]
[1724247281921,0.16400298,59255.0,59240.0,0.0615]
[1724247281922,0.16400298,59255.0,59245.0,0.337581]
[1724247282121,0.014,59244.0,59243.0,0.244896]
[1724247282328,0.014,59244.0,59243.0,0.582488]
[1724247282986,0.014,59244.0,59243.0,1.252672]
[1724247283203,0.067611,59270.0,59259.0,0.0763]
[1724247283416,0.337431,59272.0,59259.0,0.0763]
[1724247283417,0.337452,59268.0,59259.0,0.0763]
[1724247283652,0.0264635,59276.0,59259.0,0.0763]
[1724247283653,0.16400298,59267.0,59259.0,0.0763]
[1724247283854,0.168739,59263.0,59260.0,0.0614]
[1724247284082,0.168734,59265.0,59260.0,0.0614]
[1724247284271,0.16400298,59267.0,59260.0,0.0614]
[1724247284482,0.16400298,59264.0,59260.0,0.0614]
[1724247284730,0.168745,59261.0,59260.0,0.0614]
[1724247284932,0.16400298,59264.0,59259.0,0.0763]
[1724247284933,0.168747,59260.0,59259.0,0.0763]
[1724247285413,0.168747,59260.0,59254.0,0.0757]
[1724247285414,0.337499,59260.0,59254.0,0.0757]
[1724247285681,0.26400298,59259.0,59254.0,0.0757]
[1724247285930,0.26400298,59259.0,59246.0,0.337575]
[1724247285931,0.168779,59249.0,59248.0,0.0776]
[1724247286226,0.168779,59249.0,59229.0,0.337668]
[1724247286227,0.16400298,59249.0,59229.0,0.337668]
[1724247286516,0.0755,59256.0,59229.0,0.337668]
[1724247286517,0.26400298,59248.0,59231.0,0.49229154]
[1724247286769,0.403079,59263.0,59223.0,0.0069315]
[1724247286770,0.168752,59259.0,59238.0,0.0622]
[1724247287028,0.49229154,59257.0,59245.0,0.33758]
[1724247287301,0.18087818,59258.0,59247.0,0.337568]
[1724247287549,0.33749,59261.0,59248.0,0.337562]
[1724247287550,0.001,59249.0,59248.0,0.337562]
[1724247287819,0.16400298,59261.0,59246.0,0.0797]
[1724247288055,0.16400298,59261.0,59252.0,0.16877]
[1724247288056,0.168754,59258.0,59252.0,0.16877]
[1724247288386,0.168754,59258.0,59251.0,0.0009064]
[1724247288858,0.001,59259.0,59258.0,0.168753]
[1724247289105,0.0264635,59276.0,59257.0,0.168755]
[1724247289106,0.337468,59265.0,59257.0,0.168755]
[1724247289387,0.33745,59268.0,59259.0,0.168748]
[1724247289388,0.33746,59267.0,59259.0,0.168748]
[1724247289660,0.0838913,59266.0,59252.0,0.1448]
[1724247289889,0.337487,59262.0,59255.0,0.168761]
[1724247290161,0.16875,59259.0,59253.0,0.168766]
[1724247290413,0.067024,59258.0,59252.0,0.1448]
[1724247290684,0.16400298,59261.0,59253.0,0.168767]
[1724247290685,0.33274898,59261.0,59253.0,0.168767]
[1724247290945,0.168731,59266.0,59259.0,0.168749]
[1724247291400,0.168734,59265.0,59257.0,0.168754]
[1724247291404,0.337443,59270.0,59256.0,0.337516]
[1724247291648,0.01,59258.0,59257.0,0.168756]
[1724247291941,0.16400298,59269.0,59257.0,0.337512]
[1724247292193,0.16400298,59269.0,59252.0,0.1448]
[1724247292194,0.014,59266.0,59259.0,0.3385]
[1724247292494,0.337481,59263.0,59259.0,0.001]
[1724247292709,0.506242,59260.0,59259.0,0.001]
[1724247292975,0.67024498,59260.0,59259.0,0.001]
[1724247293239,1.00773998,59260.0,59259.0,0.001]
[1724247293499,0.506311,59252.0,59246.0,0.0652]
[1724247293764,0.72094508,59252.0,59244.0,0.0807]
[1724247293989,0.506311,59252.0,59244.0,0.0807]
[1724247294543,0.16877,59252.0,59244.0,0.418281]
[1724247294830,0.506311,59252.0,59244.0,0.0807]
[1724247295119,0.17577,59252.0,59251.0,0.0019064]
[1724247295386,0.337519,59256.0,59251.0,0.2495794]
[1724247295387,0.16876,59256.0,59251.0,0.2495794]
[1724247295662,0.337524,59255.0,59251.0,0.0808064]
[1724247295935,0.1,59266.0,59251.0,0.0808064]
[1724247296435,0.0812,59269.0,59251.0,0.0808064]
[1724247296436,0.16400298,59265.0,59251.0,0.0808064]
[1724247296437,0.168754,59258.0,59252.0,0.168769]
[1724247296690,0.168751,59259.0,59253.0,0.168767]
[1724247296952,0.168754,59258.0,59253.0,0.01200652]
[1724247297242,0.168754,59258.0,59251.0,0.2505774]
[1724247297243,0.16400298,59260.0,59251.0,0.4183484]
[1724247297526,0.337466,59266.0,59259.0,0.16875]
[1724247297992,0.007,59266.0,59252.0,0.07391782]
[1724247297995,0.0824,59274.0,59253.0,0.0765]
[1724247297996,0.337417,59274.0,59253.0,0.0765]
[1724247298206,0.16400298,59273.0,59263.0,0.168739]
[1724247298416,0.16400298,59273.0,59259.0,0.337496]
[1724247298417,0.33271398,59273.0,59266.0,0.168728]
[1724247298630,0.168714,59272.0,59266.0,0.168728]
[1724247298851,0.16400298,59272.0,59267.0,0.01184834]
[1724247299124,0.337399,59277.0,59271.0,0.168716]
[1724247299340,0.16400298,59275.0,59268.0,0.07310202]
[1724247299553,0.168708,59274.0,59272.0,0.01175684]
[1724247299763,0.168708,59274.0,59253.0,0.001]
[1724247299764,0.16400298,59273.0,59262.0,0.168739]
[1724247299988,0.16400298,59273.0,59240.0,0.56942593]
[1724247299989,0.168728,59267.0,59260.0,0.168746]
[1724247300258,0.168728,59267.0,59259.0,0.0662]
[1724247300259,0.006,59266.0,59259.0,0.0662]
[1724247300479,0.50146098,59267.0,59257.0,0.168753]
[1724247300681,0.0815,59268.0,59253.0,0.0778]
[1724247300682,0.33749,59261.0,59253.0,0.0778]
[1724247301100,0.16400298,59265.0,59253.0,0.0778]
[1724247301327,0.16400298,59265.0,59251.0,0.0009064]
[1724247301328,0.33749,59261.0,59251.0,0.0009064]
[1724247301533,0.000824,59256.0,59252.0,0.337541]
[1724247301747,0.000824,59256.0,59255.0,0.168762]
[1724247302000,0.000824,59256.0,59255.0,0.92908495]
[1724247302219,0.000824,59256.0,59255.0,0.649286]
[1724247302429,0.000824,59256.0,59255.0,0.143]
[1724247302652,0.000824,59256.0,59255.0,0.649286]
[1724247302899,0.000824,59256.0,59255.0,1.324334]
[1724247303342,0.000824,59256.0,59255.0,1.325334]
[1724247303771,0.000824,59256.0,59255.0,1.82886098]
[1724247303991,0.006824,59256.0,59255.0,1.49033698]
[1724247304263,0.006824,59256.0,59255.0,1.82886098]
[1724247304264,0.000824,59256.0,59255.0,1.82886098]
[1724247304480,0.000824,59256.0,59255.0,1.84986098]
[1724247304693,0.000824,59256.0,59255.0,1.85586098]
[1724247305113,0.000824,59256.0,59255.0,1.85186098]
[1724247305595,0.49229154,59278.0,59277.0,0.584597]
[1724247306017,0.337359,59284.0,59277.0,0.0785]
[1724247306219,0.337359,59284.0,59271.0,0.33743]
[1724247306220,0.168706,59275.0,59269.0,0.244621]
[1724247306435,0.16400298,59283.0,59269.0,0.0759]
[1724247306436,0.337394,59278.0,59269.0,0.0759]
[1724247306664,0.168697,59278.0,59272.0,0.168712]
[1724247306887,0.168697,59278.0,59270.0,0.337438]
[1724247307103,0.005,59278.0,59271.0,0.33743]
[1724247307305,0.005,59278.0,59271.0,0.168715]
[1724247307514,0.420554,59285.0,59277.0,0.168698]
[1724247307721,0.43268398,59284.0,59278.0,0.168696]
[1724247307927,0.02645402,59288.0,59277.0,0.0771]
[1724247308181,0.02645402,59288.0,59284.0,0.168676]
[1724247308393,0.02645402,59288.0,59277.0,0.0771]
[1724247308394,0.02645402,59288.0,59282.0,0.399968]
[1724247308599,0.337288,59297.0,59283.0,0.00337337]
[1724247308600,0.337292,59296.0,59283.0,0.00337337]
[1724247308811,0.0775,59298.0,59291.0,0.168658]
[1724247309022,0.168644,59297.0,59291.0,0.168658]
[1724247309466,0.168644,59297.0,59289.0,0.0819]
[1724247309467,0.168645,59297.0,59289.0,0.0819]
[1724247309687,0.19508602,59300.0,59289.0,0.0819]
[1724247309904,0.02645102,59300.0,59298.0,0.168637]
[1724247310125,0.067571,59308.0,59291.0,0.337317]
[1724247310126,0.067571,59308.0,59300.0,0.168632]
[1724247310336,0.067571,59308.0,59291.0,0.337317]
[1724247310337,0.168623,59304.0,59291.0,0.337317]
[1724247310545,0.168623,59304.0,59290.0,0.337323]
[1724247310546,0.16400298,59304.0,59290.0,0.337323]
[1724247310762,0.168631,59301.0,59293.0,0.337306]
[1724247310975,0.337254,59303.0,59294.0,0.337301]
[1724247311186,0.16863,59302.0,59296.0,0.168644]
[1724247311389,0.16863,59302.0,59294.0,0.337301]
[1724247311390,0.006,59300.0,59298.0,0.001]
[1724247311597,0.674462,59307.0,59297.0,0.505924]
[1724247311598,0.337237,59306.0,59297.0,0.505924]
[1724247311811,0.50123398,59307.0,59297.0,0.337284]
[1724247312097,0.006,59301.0,59297.0,0.337284]
[1724247312304,0.16400298,59308.0,59292.0,0.0625]
[1724247312513,0.16400298,59308.0,59301.0,0.168629]
[1724247312729,0.000823,59309.0,59301.0,0.0753]
[1724247313159,0.168614,59307.0,59301.0,0.243929]
[1724247313373,0.168615,59307.0,59301.0,0.24393]
[1724247313580,0.168617,59306.0,59301.0,0.0753]
[1724247313786,0.168632,59301.0,59296.0,0.0753]
[1724247313999,0.16400298,59306.0,59298.0,0.001]
[1724247314000,0.006,59300.0,59298.0,0.001]
[1724247314215,0.168636,59299.0,59292.0,0.0625]
[1724247314428,0.168636,59299.0,59291.0,0.168658]
[1724247314429,0.168644,59297.0,59291.0,0.168658]
[1724247314683,0.168647,59296.0,59290.0,0.243961]
[1724247314898,0.337282,59298.0,59284.0,0.387354]
[1724247314899,0.16400298,59294.0,59284.0,0.05]
[1724247315114,0.168676,59285.0,59284.0,0.05]
[1724247315342,0.81503198,59285.0,59284.0,0.05]
[1724247315556,1.67644118,59285.0,59284.0,0.05]
[1724247315989,1.67644118,59285.0,59263.0,0.49229154]
[1724247315990,0.168736,59265.0,59263.0,0.49229154]
[1724247316199,0.0762,59272.0,59263.0,0.49229154]
[1724247316403,0.168723,59269.0,59262.0,0.168741]
[1724247316826,0.16400298,59269.0,59258.0,0.337504]
[1724247317036,0.16400298,59269.0,59255.0,0.3384274]
[1724247317037,0.30420298,59268.0,59255.0,0.0009064]
[1724247317257,0.40420298,59268.0,59255.0,0.0009064]
[1724247317471,0.506277,59256.0,59255.0,0.0009064]
[1724247317896,1.00779798,59256.0,59255.0,0.0009064]
[1724247318104,0.74647998,59256.0,59255.0,0.0009064]
[1724247318325,1.08399798,59256.0,59255.0,0.0009064]
[1724247318618,0.0762,59264.0,59255.0,0.0009064]
[1724247318828,0.24020298,59264.0,59255.0,0.0009064]
[1724247319071,0.24020298,59264.0,59256.0,0.168758]
[1724247319072,0.16874,59263.0,59256.0,0.168758]
[1724247319259,0.337479,59263.0,59255.0,0.0773064]
[1724247319465,0.16400298,59264.0,59255.0,0.4148294]
[1724247319688,0.35977692,59266.0,59255.0,0.4148294]
[1724247319689,0.337465,59266.0,59257.0,0.168755]
[1724247319937,0.337468,59265.0,59258.0,0.001]
[1724247320157,0.006,59269.0,59258.0,0.001]
[1724247320365,0.006,59269.0,59260.0,0.168746]
[1724247320366,0.168729,59267.0,59260.0,0.168746]
[1724247320575,0.16400298,59268.0,59258.0,0.001]
[1724247320783,0.16400298,59268.0,59262.0,0.16874]
[1724247320998,0.2090655,59269.0,59258.0,0.001]
[1724247320999,0.006,59269.0,59258.0,0.001]
[1724247321215,0.006,59269.0,59268.0,0.168725]
[1724247321645,0.337355,59285.0,59276.0,0.168701]
[1724247321859,0.0819,59286.0,59277.0,0.168697]
[1724247321860,0.38112848,59284.0,59277.0,0.168697]
[1724247322070,0.57419154,59286.0,59277.0,0.337398]
[1724247322071,0.0819,59286.0,59277.0,0.337398]
[1724247322287,0.0819,59286.0,59272.0,0.0608]
[1724247322496,0.168658,59292.0,59285.0,0.168675]
[1724247322709,0.168646,59296.0,59289.0,0.168664]
[1724247322918,0.168646,59296.0,59281.0,0.0804]
[1724247322919,0.0505929,59296.0,59281.0,0.0804]
[1724247323143,0.0794,59301.0,59292.0,0.168654]
[1724247323393,0.0794,59301.0,59289.0,0.337326]
[1724247323394,0.168638,59299.0,59289.0,0.337326]
[1724247323636,0.16400298,59298.0,59289.0,0.143]
[1724247323843,0.000824,59303.0,59289.0,0.143]
[1724247324057,0.000824,59303.0,59297.0,0.168641]
[1724247324264,0.000824,59303.0,59298.0,0.168638]
[1724247324486,0.000824,59303.0,59294.0,0.337301]
[1724247324487,0.000824,59303.0,59299.0,0.168636]
[1724247324717,0.000824,59303.0,59293.0,0.337306]
[1724247324979,0.000824,59303.0,59302.0,0.168628]
[1724247325211,0.000824,59303.0,59302.0,0.505884]
[1724247325419,0.000824,59303.0,59302.0,0.244128]
[1724247325635,0.000824,59303.0,59302.0,0.581384]
[1724247326061,0.000824,59303.0,59302.0,0.244128]
[1724247326313,0.000824,59303.0,59301.0,0.16863]
[1724247326531,0.000824,59303.0,59296.0,0.337288]
[1724247326532,0.004824,59303.0,59302.0,0.001]
[1724247326756,0.0221682,59303.0,59302.0,0.001]
[1724247326962,0.67470298,59303.0,59302.0,0.001]
[1724247327174,0.004824,59303.0,59302.0,0.001]
[1724247327392,0.173449,59303.0,59302.0,0.001]
[1724247327606,0.004824,59303.0,59302.0,0.001]
[1724247327827,0.33745198,59303.0,59302.0,0.001]
[1724247328045,0.74217238,59303.0,59302.0,0.001]
[1724247328255,0.67970298,59303.0,59302.0,0.001]
[1724247328466,0.67970298,59303.0,59291.0,0.168658]
[1724247328467,0.337273,59300.0,59289.0,0.0663]
[1724247328680,0.337273,59300.0,59288.0,0.417532]
[1724247328681,0.168644,59297.0,59288.0,0.417532]
[1724247328885,0.168649,59295.0,59289.0,0.168664]
[1724247329095,0.50129998,59295.0,59287.0,0.168669]
[1724247329306,0.16400298,59295.0,59286.0,0.337346]
[1724247329728,0.0801,59302.0,59284.0,0.0009064]
[1724247329934,0.50126998,59301.0,59290.0,0.337324]
[1724247330154,0.168651,59294.0,59288.0,0.168667]
[1724247330371,0.50126998,59301.0,59284.0,0.0009064]
[1724247330372,0.337298,59295.0,59285.0,0.337351]
[1724247330795,0.16865,59295.0,59289.0,0.168664]
[1724247331020,0.337294,59296.0,59285.0,0.337351]
[1724247331271,0.168654,59293.0,59288.0,0.168667]
[1724247331484,0.168654,59293.0,59288.0,0.169667]
[1724247331699,0.16400298,59295.0,59289.0,0.01074389]
[1724247331918,0.005,59295.0,59294.0,0.16865]
[1724247332125,0.005,59295.0,59294.0,0.843254]
[1724247332342,0.337228,59307.0,59297.0,0.168641]
[1724247332557,0.337228,59307.0,59294.0,0.0827]
[1724247332558,0.16400298,59302.0,59295.0,0.168646]
[1724247332769,0.16400298,59302.0,59298.0,0.00916843]
[1724247332982,0.33263098,59302.0,59296.0,0.33729]
[1724247333194,0.000824,59303.0,59300.0,0.168632]
[1724247333405,0.000824,59303.0,59302.0,0.505884]
[1724247333634,0.000824,59303.0,59302.0,0.583584]
[1724247333888,0.000824,59303.0,59302.0,0.59273908]
[1724247334756,0.000824,59303.0,59302.0,0.51503908]
[1724247335631,0.003824,59303.0,59302.0,0.85229508]
[1724247337743,0.003824,59303.0,59302.0,1.92685406]
[1724247337937,0.000823,59309.0,59308.0,1.596299]
[1724247338064,0.000823,59309.0,59308.0,1.76030198]
[1724247338271,0.000823,59309.0,59308.0,1.76959237]
[1724247339171,0.000823,59309.0,59308.0,1.77859237]
[1724247339377,0.000823,59309.0,59308.0,1.76959237]
[1724247339780,0.000823,59309.0,59308.0,1.77959237]
[1724247340398,0.000823,59309.0,59308.0,0.01929039]
[1724247341005,0.000823,59309.0,59308.0,0.00929039]
[1724247341411,0.000823,59309.0,59308.0,0.505833]
[1724247341594,0.000823,59309.0,59308.0,0.02029039]
[1724247341841,0.000823,59309.0,59308.0,0.51512339]
[1724247342248,0.000823,59309.0,59308.0,0.92754539]
[1724247342451,0.000823,59309.0,59308.0,1.26476739]
[1724247342880,0.000823,59309.0,59308.0,0.51512339]
[1724247343089,0.000823,59309.0,59308.0,0.17790139]
[1724247343292,0.000823,59309.0,59308.0,0.51512339]
[1724247343496,0.000823,59309.0,59308.0,0.85234539]
[1724247344540,0.337364,59319.0,59312.0,0.168598]
[1724247344749,0.50136698,59319.0,59312.0,0.168598]
[1724247344979,0.168584,59318.0,59313.0,0.00924213]
[1724247345176,0.168584,59318.0,59313.0,0.17783813]
[1724247345400,0.16420298,59319.0,59315.0,0.168589]
[1724247345817,0.16420298,59319.0,59316.0,0.00923212]
[1724247346041,0.168585,59317.0,59316.0,0.00923212]
[1724247346246,0.337365,59319.0,59307.0,0.337227]
[1724247346247,0.0002,59319.0,59307.0,0.337227]
[1724247346475,0.168594,59315.0,59313.0,0.001]
[1724247346687,0.50416898,59318.0,59309.0,0.168607]
[1724247346688,0.16400298,59314.0,59309.0,0.168607]
[1724247346895,0.168608,59309.0,59308.0,0.00925881]
[1724247347102,0.168608,59309.0,59296.0,0.49229154]
[1724247347103,0.22990298,59309.0,59296.0,0.49229154]
[1724247347307,0.22990298,59309.0,59289.0,0.1411]
[1724247347308,0.168616,59307.0,59301.0,0.168629]
[1724247347567,0.22990298,59309.0,59289.0,0.1411]
[1724247347802,0.22990298,59309.0,59307.0,0.168613]
[1724247348003,0.414698,59313.0,59289.0,0.1411]
[1724247348004,0.0775,59313.0,59295.0,0.4305]
[1724247348219,0.16400298,59312.0,59301.0,0.0806]
[1724247348628,0.16400298,59312.0,59306.0,0.33723]
[1724247348843,0.16400298,59312.0,59305.0,0.337236]
[1724247349080,0.16400298,59312.0,59295.0,0.4305]
[1724247349081,0.50120298,59312.0,59303.0,0.337249]
[1724247349281,0.0747286,59311.0,59307.0,0.001]
[1724247349502,0.168606,59310.0,59305.0,0.168618]
[1724247349706,0.16400298,59309.0,59300.0,0.337265]
[1724247349831,0.168615,59307.0,59301.0,0.16963]
[1724247350034,0.168615,59307.0,59301.0,0.001]
[1724247350233,0.168615,59307.0,59302.0,0.168628]
[1724247350478,0.3402,59312.0,59303.0,0.337246]
[1724247350479,0.003,59312.0,59303.0,0.337246]
[1724247350683,0.16400298,59312.0,59308.0,0.168608]
[1724247350942,0.16400298,59312.0,59307.0,0.337225]
[1724247351145,0.0002,59319.0,59310.0,0.337207]
[1724247351345,0.0002,59319.0,59316.0,0.168586]
[1724247351491,0.0002,59319.0,59318.0,0.168582]
[1724247351690,0.0002,59319.0,59318.0,0.505747]
[1724247352068,0.0002,59319.0,59316.0,0.337176]
[1724247352069,0.0002,59319.0,59317.0,0.168584]
[1724247352197,0.0002,59319.0,59312.0,0.337197]
[1724247352613,0.0032,59319.0,59318.0,0.168582]
[1724247352790,0.0032,59319.0,59318.0,0.505747]
[1724247353010,0.0002,59319.0,59318.0,0.505747]
[1724247353204,0.0032,59319.0,59317.0,0.001]
[1724247353633,0.0032,59319.0,59314.0,0.3688]
[1724247353634,0.0002,59319.0,59318.0,0.168582]
[1724247353835,0.0002,59319.0,59318.0,0.506747]
[1724247353836,0.0032,59319.0,59318.0,0.506747]
[1724247354603,0.0032,59319.0,59318.0,0.843912]
[1724247354797,0.0032,59319.0,59318.0,1.181077]
[1724247355247,0.0002,59319.0,59318.0,1.180077]
[1724247355439,0.0002,59319.0,59318.0,0.842912]
[1724247355642,0.0032,59319.0,59318.0,0.874547]
[1724247355845,0.0002,59319.0,59318.0,0.3688]
[1724247356264,0.0002,59319.0,59318.0,0.004]
[1724247356466,0.0002,59319.0,59314.0,0.168593]
[1724247356745,0.0002,59319.0,59311.0,0.706002]
[1724247356746,0.0002,59319.0,59313.0,0.337193]
[1724247356927,0.0002,59319.0,59318.0,0.505747]
[1724247357143,0.0002,59319.0,59318.0,0.842912]
[1724247357351,0.0002,59319.0,59318.0,0.85213162]
[1724247357772,0.0002,59319.0,59318.0,1.22093162]
[1724247357995,0.0002,59319.0,59318.0,0.37801962]
[1724247358618,0.50594,59319.0,59318.0,0.00921962]
[1724247358820,0.17178,59319.0,59318.0,0.00921962]
[1724247359035,0.2196721,59319.0,59313.0,0.168596]
[1724247359285,0.2196721,59319.0,59295.0,0.004]
[1724247359286,0.0771,59313.0,59303.0,0.3688]
[1724247359519,0.168611,59308.0,59303.0,0.3688]
[1724247359727,0.50120698,59312.0,59305.0,0.168619]
[1724247359940,0.168603,59311.0,59305.0,0.168619]
[1724247360189,0.1686,59312.0,59301.0,0.078]
[1724247360395,0.245698,59313.0,59307.0,0.168614]
[1724247360642,0.0771,59313.0,59301.0,0.078]
[1724247361062,0.0771,59313.0,59295.0,0.50129498]
[1724247361063,0.168601,59312.0,59305.0,0.537417]
[1724247361275,0.168608,59309.0,59305.0,0.3688]
[1724247361497,0.168623,59304.0,59298.0,0.537439]
[1724247361704,0.16400298,59308.0,59303.0,0.001]
[1724247361920,0.16400298,59308.0,59298.0,0.3688]
[1724247362123,0.337229,59307.0,59298.0,0.3688]
[1724247362337,0.16862,59305.0,59298.0,0.3688]
[1724247362551,0.39149526,59307.0,59290.0,0.415223]
[1724247362552,0.0781,59302.0,59290.0,0.415223]
[1724247362761,0.0781,59307.0,59303.0,0.168623]
[1724247362963,0.009,59308.0,59307.0,0.168614]
[1724247363197,0.009,59308.0,59307.0,0.84307]
[1724247363401,0.009,59308.0,59307.0,0.505842]
[1724247363605,0.009,59308.0,59307.0,0.168614]
[1724247363814,0.009,59308.0,59305.0,0.168619]
[1724247364024,0.009,59308.0,59304.0,0.33724]
[1724247364230,0.009,59308.0,59307.0,0.505842]
[1724247364694,0.009,59308.0,59307.0,0.168614]
[1724247364898,0.246698,59313.0,59307.0,0.168614]
[1724247365103,0.168599,59312.0,59311.0,0.0009053]
[1724247365540,0.0781,59313.0,59311.0,0.0009053]
[1724247365770,0.0781,59313.0,59311.0,0.1695063]
[1724247365974,0.246698,59313.0,59311.0,0.01015591]
[1724247366187,0.0781,59313.0,59311.0,0.01015591]
[1724247366402,0.1,59318.0,59311.0,0.01115591]
[1724247366403,0.007,59312.0,59311.0,0.01115591]
[1724247366621,0.007,59312.0,59311.0,1.01817089]
[1724247366834,0.1,59318.0,59317.0,1.180098]
[1724247367047,0.1,59318.0,59317.0,1.2069888]
[1724247367260,0.1,59318.0,59317.0,1.21622552]
[1724247367688,0.1,59318.0,59317.0,2.1424087]
[1724247368113,0.1,59318.0,59317.0,2.2046087]
[1724247368538,0.1,59318.0,59317.0,2.25486107]
[1724247368743,0.1,59318.0,59317.0,2.2046087]
[1724247368954,0.1,59318.0,59317.0,2.2106087]
[1724247369392,0.1,59318.0,59317.0,2.2346087]
[1724247369644,0.00823,59324.0,59323.0,1.692716]
[1724247369855,0.00823,59324.0,59323.0,1.85671898]
[1724247370058,0.00823,59324.0,59323.0,1.86592697]
[1724247370287,0.00823,59324.0,59323.0,1.88626642]
[1724247370479,0.00823,59324.0,59323.0,1.72226344]
[1724247370690,0.00823,59324.0,59323.0,1.33478699]
[1724247371522,0.00823,59324.0,59323.0,1.49878997]
[1724247372198,0.00823,59324.0,59323.0,1.33478699]
[1724247372398,0.00923,59324.0,59323.0,1.50578997]
[1724247372818,0.00923,59324.0,59323.0,1.53678997]
[1724247373036,0.00923,59324.0,59323.0,1.87592697]
[1724247373900,0.00923,59324.0,59323.0,1.87292697]
[1724247374400,0.00923,59324.0,59323.0,1.87392697]
[1724247374667,0.00923,59324.0,59323.0,1.87592697]
[1724247376201,0.00923,59324.0,59323.0,2.33806397]
[1724247376476,0.00923,59324.0,59323.0,2.02321611]
[1724247376705,0.00923,59324.0,59323.0,1.97292697]
[1724247376997,0.00923,59324.0,59323.0,1.34178699]
[1724247377224,0.00923,59324.0,59323.0,1.19618699]
[1724247377942,0.00923,59324.0,59323.0,1.53332399]
[1724247378151,0.00823,59324.0,59323.0,1.52632399]
[1724247378563,0.00823,59324.0,59323.0,1.54032399]
[1724247378773,0.00823,59324.0,59323.0,1.52632399]
[1724247379177,0.00823,59324.0,59323.0,1.53632399]
[1724247379626,0.00823,59324.0,59323.0,1.52632399]
[1724247380291,0.00823,59324.0,59323.0,1.53632399]
[1724247380718,0.00823,59324.0,59323.0,1.83111557]
[1724247380925,0.00824,59338.0,59329.0,0.169551]
[1724247381159,0.00824,59338.0,59329.0,0.67265698]
[1724247381371,0.00824,59338.0,59329.0,1.68396598]
[1724247381577,0.00824,59338.0,59329.0,1.69313399]
[1724247381578,0.0080779,59330.0,59329.0,1.69313399]
[1724247381782,0.0080779,59330.0,59329.0,1.69013399]
[1724247382188,0.0080779,59330.0,59329.0,2.06193399]
[1724247382835,0.0080779,59330.0,59329.0,2.50993699]
[1724247383060,0.0080779,59330.0,59329.0,2.54693699]
[1724247383462,0.0080779,59330.0,59329.0,2.53493699]
[1724247383647,0.0080779,59330.0,59329.0,2.54893699]
[1724247384299,0.0080779,59330.0,59329.0,2.95193999]
[1724247384503,0.0080779,59330.0,59329.0,3.10224862]
[1724247385426,0.0080779,59330.0,59329.0,3.06493999]
[1724247385860,0.0080779,59330.0,59329.0,3.03593999]
[1724247386065,0.0080779,59330.0,59329.0,1.90893101]
[1724247386924,0.0080779,59330.0,59329.0,1.90993101]
[1724247387136,0.0080779,59330.0,59329.0,2.10393399]
[1724247387363,0.0080779,59330.0,59329.0,2.08993399]
[1724247387572,0.0080779,59330.0,59329.0,2.05893399]
[1724247387783,0.0080779,59330.0,59329.0,1.55782801]
[1724247387994,0.0080779,59330.0,59329.0,1.18902801]
[1724247388595,0.0080779,59330.0,59329.0,1.20302801]
[1724247389032,0.0080779,59330.0,59329.0,1.18902801]
[1724247389456,0.0080779,59330.0,59329.0,1.20102801]
[1724247390504,0.0704779,59330.0,59329.0,0.52682201]
[1724247390717,0.0704779,59330.0,59329.0,1.20102801]
[1724247390921,0.0080779,59330.0,59329.0,1.20102801]
[1724247391535,0.0080779,59330.0,59329.0,0.86392501]
[1724247391746,0.0080779,59330.0,59329.0,0.52682201]
[1724247391958,0.1537779,59330.0,59329.0,0.02116801]
[1724247392397,0.1537779,59330.0,59329.0,0.00916801]
[1724247392778,0.1537779,59330.0,59329.0,0.006]
[1724247392985,0.1537779,59330.0,59329.0,0.00916408]
[1724247393396,0.1537779,59330.0,59329.0,0.01016408]
[1724247393605,0.1537779,59330.0,59329.0,0.34726708]
[1724247393813,0.1537779,59330.0,59329.0,0.01016408]
[1724247394786,0.1537779,59330.0,59329.0,0.51581808]
[1724247395118,0.1537779,59330.0,59329.0,0.01016408]
[1724247396443,0.1537779,59330.0,59329.0,0.34726708]
[1724247396662,0.0873779,59330.0,59329.0,0.85292108]
[1724247396870,0.0873779,59330.0,59329.0,0.51581808]
[1724247397080,0.0873779,59330.0,59329.0,0.85292108]
[1724247397519,0.0873779,59330.0,59329.0,1.19002408]
[1724247397520,0.0080779,59330.0,59329.0,1.19002408]
[1724247397724,0.0080779,59330.0,59329.0,1.43272706]
[1724247397945,0.0080779,59330.0,59329.0,1.76683006]
[1724247399030,0.0080779,59330.0,59329.0,1.76783006]
[1724247399235,0.00824,59338.0,59337.0,1.179699]
[1724247399655,0.00824,59338.0,59337.0,1.18884326]
[1724247400312,0.00824,59338.0,59337.0,1.52590026]
[1724247400944,0.00824,59338.0,59337.0,1.52690026]
[1724247401155,0.00824,59338.0,59337.0,1.79440324]
[1724247401403,0.00824,59338.0,59337.0,2.56276024]
[1724247401615,0.08812,59358.0,59357.0,1.179304]
[1724247401616,0.00822,59358.0,59357.0,1.179304]
[1724247401827,0.00822,59358.0,59357.0,1.548104]
[1724247402121,0.00822,59358.0,59357.0,1.55868916]
[1724247402820,0.00823,59369.0,59368.0,0.842202]
[1724247403030,0.00823,59369.0,59368.0,1.45430498]
[1724247403241,0.00823,59369.0,59368.0,1.55690886]
[1724247403678,0.08463,59369.0,59368.0,0.17746586]
[1724247403876,0.08463,59369.0,59368.0,0.1747581]
[1724247404077,0.08463,59369.0,59368.0,0.5116391]
[1724247404504,0.08463,59369.0,59368.0,0.8485201]
[1724247404706,0.08463,59369.0,59368.0,0.1747581]
[1724247404929,0.15033,59369.0,59368.0,0.0063181]
[1724247405150,0.15033,59369.0,59368.0,0.0093181]
[1724247405404,0.53196968,59369.0,59368.0,0.003]
[1724247405622,0.53196968,59369.0,59345.0,0.1]
[1724247405623,0.0777,59368.0,59355.0,0.168475]
[1724247405828,0.0777,59362.0,59355.0,0.336951]
[1724247406040,0.0777,59362.0,59352.0,0.336968]
[1724247406041,0.0777,59362.0,59357.0,0.336943]
[1724247406292,0.0777,59362.0,59361.0,0.505381]